Cogmind - Beta 12 X1 @@@ ROGUE MODE // 2022.08.17 @ 23:22:35 Player: Momo Result: Destroyed by as-45358 with Assembled Focal Cannon Performance ------------- Evolutions (3) 1500 Regions Visited (9) 1800 Robots Destroyed (21) 105 Value Destroyed (675) 675 Prototype IDs (6) 120 Alien Tech Used (0) 0 Bonus (2000) 2000 TOTAL SCORE: 6200 Bonus ------- Destroyed Z-Imprinter 1000 Triggered Deep Caves Wall 500 Exposed GOLEM Chamber 500 Cogmind --------- Core Integrity 0/700 Matter 300/300 Energy 64/100 System Corruption 0% Temperature Cool (6) Movement Core (50) Location -7/Deep Caves Parts ------- > --- POWER (1) -------- (None) > --- PROPULSION (6) --- (None) > --- UTILITY (4) ------ (None) > --- WEAPON (2) ------- (None) > --- INVENTORY (5) ---- Zionite Glidesys I GOLEM Unit Phasing AFG RU-N14's Throwing Claymores (10) Peak State ------------ > --- POWER ------------ Nuclear Core > --- PROPULSION ------- Cooled Airjet Flight Unit VTOL Module VTOL Module Cesium-ion Thruster Xenon Bombardment Thruster > --- UTILITY ---------- Experimental Heat Sink Advanced Terrain Scan Processor Zionite Weapon Casing Makeshift Hacking Suite > --- WEAPON ----------- RU-N14's Throwing Claymores RU-N14's Throwing Claymores > --- INVENTORY -------- Phasing AFG Precision Rocket Launcher RU-N14's Throwing Claymores RU-N14's Throwing Claymores Great Maul [Rating: 58] Favorites ----------- Power Nuclear Core Engine Ion Engine Power Core Nuclear Core Propulsion VTOL Module Leg Aluminum Leg Hover Unit Cooled Airjet Flight Unit VTOL Module Utility Advanced Terrain Scan Processor Device Improved Terrain Scanner Storage Small Storage Unit Processor Advanced Terrain Scan Processor Hackware Makeshift Hacking Suite Protection Propulsion Shielding Weapon RU-N14's Throwing Claymores Energy Gun EM Pulse Gun Ballistic Gun Light Assault Rifle Launcher Precision Rocket Launcher Special Weapon RU-N14's Throwing Claymores Impact Weapon Great Maul Slashing Weapon Ripper Build | -11 -10 -9 -9 -8 -7 -7 -7 -7 -7 ------- Run | Scr Mat Mat Sto Mat Fac Low Low Zio Dee Slots Evolved 6 | . . 2 . 2 2 . . . . Power . | . . . . . . . . . . Propulsion 4 | . . 1 . 1 2 . . . . Utility 2 | . . 1 . 1 . . . . . Weapon . | . . . . . . . . . . Parts Attached 37 | 6 4 . 2 9 4 . 1 5 6 Power 3 | 1 1 . . 1 . . . . . Engine 1 | 1 . . . . . . . . . Core 2 | . 1 . . 1 . . . . . Reactor . | . . . . . . . . . . Propulsion 10 | 2 2 . . 4 2 . . . . Treads . | . . . . . . . . . . Leg 4 | 2 2 . . . . . . . . Wheel . | . . . . . . . . . . Hover 1 | . . . . . 1 . . . . Flight 5 | . . . . 4 1 . . . . Utility 14 | 1 1 . . 3 1 . . 4 4 Device 7 | . 1 . . 1 . . . 2 3 Storage 1 | 1 . . . . . . . . . Processor 1 | . . . . . 1 . . . . Hackware 2 | . . . . 1 . . . 1 . Protection 3 | . . . . 1 . . . 1 1 Artifact . | . . . . . . . . . . Weapon 10 | 2 . . 2 1 1 . 1 1 2 Energy Gun 2 | 1 . . 1 . . . . . . Energy Cannon . | . . . . . . . . . . Ballistic Gun 1 | 1 . . . . . . . . . Ballistic Cannon . | . . . . . . . . . . Launcher 3 | . . . 1 1 . . 1 . . Special Weapon 2 | . . . . . . . . 1 1 Impact Weapon 1 | . . . . . 1 . . . . Slashing Weapon 1 | . . . . . . . . . 1 Piercing Weapon . | . . . . . . . . . . Special Melee Weapon . | . . . . . . . . . . Unidentified Prototypes 6 | . . . 1 . 1 . . 2 2 Parts Lost 21 | . 4 . 6 . . . . . 11 Power 3 | . 1 . 1 . . . . . 1 Propulsion 10 | . 2 . 2 . . . . . 6 Utility 4 | . . . 1 . . . . . 3 Weapon 4 | . 1 . 2 . . . . . 1 Highest Loss Streak 10 | . 4 . 5 . . . . . 10 To Critical Strikes . | . . . . . . . . . . Average Slot Usage (%) 77 | . 68 66 27 21 84 92 92 96 92 Core 6 | . 8 11 2 3 7 7 7 7 6 Leg 3 | . 18 22 7 . . . . . . Hover 4 | . . . . . 7 7 7 7 6 Flight 27 | . . . . 12 38 38 38 38 36 Device 6 | . 7 11 9 2 7 7 7 5 6 Storage 2 | . 14 11 2 . . . . . . Processor 4 | . . . . . 4 7 7 7 7 Hackware 5 | . . . . . 7 7 7 8 7 Protection 3 | . . . . 2 7 7 7 7 2 Ballistic Gun 2 | . 14 11 3 . . . . . . Special Weapon 4 | . . . . . . . . 3 13 Impact Weapon 2 | . . . . . 2 7 7 7 . Naked Turns 41 | . . . 28 10 . . . . 3 Heaviest Build 25 | 13 13 12 13 9 13 13 13 22 25 Greatest Support 23 | 20 20 20 20 17 23 14 23 23 23 Greatest Overweight (x) 2 | 2 1 . . . . . . . 1 Average Overweight (x) . | . . . . . . . . . . Largest Inventory Capacity 8 | 8 8 8 8 5 5 5 5 5 5 Average Capacity 5 | 7 8 8 5 5 5 5 5 5 5 Most Carried 5 | . 1 2 2 5 5 5 5 5 5 Average Carried 3 | . . 1 1 3 4 4 4 4 4 Final Capacity 8 | 8 8 8 5 5 5 5 5 5 5 Final Carried 5 | . 1 2 2 5 4 5 5 5 5 Class Distribution -------------------- 51% | Mutant 41% | Sprinter 4% | Scavenger-Mutant 3% | Hacker-Sprinter Dominant Class ---------------- Mutant | -10/Materials Mutant | -9/Materials Mutant | -9/Storage Mutant | -8/Materials Mutant | -7/Factory Sprinter | -7/Lower Caves Sprinter | -7/Lower Caves Sprinter | -7/Zion Mutant | -7/Deep Caves Resources | -11 -10 -9 -9 -8 -7 -7 -7 -7 -7 ----------- Run | Scr Mat Mat Sto Mat Fac Low Low Zio Dee Matter Collected 619 | 108 211 . . 46 . 67 39 52 96 Remotely . | . . . . . . . . . . Salvage Created 587 | . 211 . . 149 . . 17 . 210 Parts 35 | . 10 . . 14 . . 2 . 9 Haulers Intercepted . | . . . . . . . . . . Recyclers Shooed 1 | . . . . 1 . . . . . Parts Field Recycled . | . . . . . . . . . . Retrieved Matter . | . . . . . . . . . . Parts Self-Destructed . | . . . . . . . . . . Prevented 3 | . . . . . . 3 . . . Kills | -11 -10 -9 -9 -8 -7 -7 -7 -7 -7 ------- Run | Scr Mat Mat Sto Mat Fac Low Low Zio Dee Combat Hostiles Destroyed 21 | . 5 . . 3 . . 3 . 10 Guns 3 | . 3 . . . . . . . . Cannons 1 | . . . . . . . . . 1 AOE 17 | . 2 . . 3 . . 3 . 9 Classes Destroyed 8 | . 1 . . 5 . . . . 2 Worker 1 | . . . . 1 . . . . . Builder 1 | . . . . 1 . . . . . Recycler 1 | . . . . 1 . . . . . Watcher 1 | . . . . 1 . . . . . Swarmer 6 | . . . . 3 . . 3 . . Grunt 5 | . 5 . . . . . . . . Z-Light 5 | . . . . . . . . . 5 Assembled 4 | . . . . . . . . . 4 Best Kill Streak 7 | . 3 . . 7 . . 3 . 4 Combat Bots Only 4 | . 3 . . 3 . . 3 . 4 Max Kills in Single Turn 4 | . 2 . . 4 . . 1 . 3 Gunslinging . | . . . . . . . . . . Exploded 3 | . 2 . . 3 . . 1 . 3 Melee . | . . . . . . . . . . Uniques/NPCs Destroyed 1 | . . . . . . . . . 1 Z-Imprinter (-7/Deep Caves) Combat | -11 -10 -9 -9 -8 -7 -7 -7 -7 -7 -------- Run | Scr Mat Mat Sto Mat Fac Low Low Zio Dee Damage Taken 2479 | . 592 . 605 72 . . 64 . 1146 Core 1123 | . 141 . 247 15 . . 14 . 706 Absorbed by Shields . | . . . . . . . . . . Redirected to Shielding 80 | . . . . 7 . . 5 . 68 Core Remaining (%) 69 | 100 43 . 38 97 . . . . . Volleys Fired 53 | . 39 . . 2 . . 3 . 9 Largest 2 | . 2 . . 1 . . 1 . 2 Hottest 60 | . 60 . . 43 . . 43 . . Shots Fired 65 | . 43 . . 2 . . 3 . 17 Gun 43 | . 43 . . . . . . . . Cannon . | . . . . . . . . . . Launcher 5 | . . . . 2 . . 3 . . Special 17 | . . . . . . . . . 17 Kinetic 39 | . 39 . . . . . . . . Thermal . | . . . . . . . . . . Explosive 22 | . . . . 2 . . 3 . 17 Electromagnetic 4 | . 4 . . . . . . . . Robot Hit Streak 8 | . 8 . . . . . 2 . 3 Robot Miss Streak 3 | . 3 . . 1 . . . . 1 Penetration Max . | . . . . . . . . . . Secondary Targets . | . . . . . . . . . . Shots Hit Robots 35 | . 28 . . . . . 2 . 5 Core Hits 47 | . 13 . 1 14 . . 4 . 15 Critical Kills . | . . . . . . . . . . Critical Parts Destroyed . | . . . . . . . . . . Critical Strikes 2 | . . . . . . . . . 2 Sever 2 | . . . . . . . . . 2 Melee Attacks 38 | . . . . . . . . 37 1 Impact 37 | . . . . . . . . 37 . Slashing 1 | . . . . . . . . . 1 Piercing . | . . . . . . . . . . Sneak Attacks . | . . . . . . . . . . Combat Hostiles . | . . . . . . . . . . Follow-up Attacks . | . . . . . . . . . . Damage Inflicted 2760 | . 358 . 25 470 . . 414 . 1493 Guns 256 | . 256 . . . . . . . . Cannons . | . . . . . . . . . . Explosions 2203 | . 102 . . 470 . . 414 . 1217 Melee . | . . . . . . . . . . Ramming 25 | . . . 25 . . . . . . Kinetic 215 | . 215 . . . . . . . . Thermal 102 | . 102 . . . . . . . . Explosive 1829 | . . . . 198 . . 414 . 1217 Electromagnetic 313 | . 41 . . 272 . . . . . Impact . | . . . . . . . . . . Slashing 276 | . . . . . . . . . 276 Piercing . | . . . . . . . . . . Highest Corruption 3 | . . . 3 . . . . . . Average Corruption 2 | . . . 2 . . . . . . Corruption Purged . | . . . . . . . . . . Corruption Blocked . | . . . . . . . . . . Effects 2 | . . . 2 . . . . . . Data Loss (minor) 1 | . . . 1 . . . . . . Alerts 1 | . . . 1 . . . . . . Overload Shots . | . . . . . . . . . . Overflow Damage 67 | . 4 . . 8 . . . . 55 Projectiles . | . . . . . . . . . . Explosions 67 | . 4 . . 8 . . . . 55 Melee . | . . . . . . . . . . Knockbacks . | . . . . . . . . . . Impact . | . . . . . . . . . . Kinetic . | . . . . . . . . . . Secondary . | . . . . . . . . . . Self-Inflicted Damage 48 | . 37 . 11 . . . . . . Shots 1 | . 1 . . . . . . . . Rammed 5 | . . . 5 . . . . . . Targets Rammed 5 | . . . 5 . . . . . . Kicked . | . . . . . . . . . . Crushed . | . . . . . . . . . . Highest Temperature 120 | . 120 . . . . . . . 6 Average Temperature 53 | . 56 . . . . . . . 4 Received Heat Transfer 756 | . 408 . 189 9 . . . . 150 Siege Activations . | . . . . . . . . . . Robots Corrupted . | . . . . . . . . . . Combat Hostiles . | . . . . . . . . . . Parts Fried . | . . . . . . . . . . Impact Corruptions . | . . . . . . . . . . Robots Melted . | . . . . . . . . . . Combat Hostiles . | . . . . . . . . . . Parts Melted . | . . . . . . . . . . Heat Transferred 150 | . 150 . . . . . . . . Parts Sabotaged . | . . . . . . . . . . Parts Stolen . | . . . . . . . . . . Parts Stripped . | . . . . . . . . . . Power Chain Reactions 3 | . 1 . . 2 . . . . . Missiles Intercepted . | . . . . . . . . . . Alert | -11 -10 -9 -9 -8 -7 -7 -7 -7 -7 ------- Run | Scr Mat Mat Sto Mat Fac Low Low Zio Dee Peak Influence 351 | . 111 46 212 351 159 . . . . Initial 159 | . . 46 18 89 159 . . . . Average 83 | . 59 46 71 132 159 . . . . Maximum Alert Level 1 | . . . 1 1 . . . . . Low Security (%) 96 | 100 100 100 97 87 100 . . . . Level 1 3 | . . . 2 12 . . . . . Level 2 . | . . . . . . . . . . Level 3 . | . . . . . . . . . . Level 4 . | . . . . . . . . . . Level 5 . | . . . . . . . . . . High Security . | . . . . . . . . . . Max Security . | . . . . . . . . . . Squads Dispatched 4 | . 1 . 2 . 1 . . . . Investigation 1 | . . . 1 . . . . . . Extermination . | . . . . . . . . . . Reinforcement 3 | . 1 . 1 . 1 . . . . Assault . | . . . . . . . . . . Garrison . | . . . . . . . . . . Intercept . | . . . . . . . . . . Searches Triggered . | . . . . . . . . . . Construction Impeded . | . . . . . . . . . . Haulers Reinforced . | . . . . . . . . . . Active Scanning Responses . | . . . . . . . . . . Cargo Convoy Interrupts . | . . . . . . . . . . Stealth | -11 -10 -9 -9 -8 -7 -7 -7 -7 -7 --------- Run | Scr Mat Mat Sto Mat Fac Low Low Zio Dee Distress Signals 2 | . . . 2 . . . . . . Communications Jammed . | . . . . . . . . . . Distress Signals . | . . . . . . . . . . Times Spotted 72 | . 9 . 18 8 . . 3 . 34 Peak Tracking Total 40 | . 4 . 14 9 . . 3 . 40 Tactical Retreats 1 | . . . 1 . . . . . . Traps | -11 -10 -9 -9 -8 -7 -7 -7 -7 -7 ------- Run | Scr Mat Mat Sto Mat Fac Low Low Zio Dee Traps Triggered 3 | . . . 3 . . . . . . Indirectly . | . . . . . . . . . . Trap Hack Attempts . | . . . . . . . . . . Triggered . | . . . . . . . . . . Disarmed . | . . . . . . . . . . Reprogrammed . | . . . . . . . . . . Reused . | . . . . . . . . . . Traps Extracted . | . . . . . . . . . . Installed . | . . . . . . . . . . Triggered 1 | . . . . . . 1 . . . Machines | -11 -10 -9 -9 -8 -7 -7 -7 -7 -7 ---------- Run | Scr Mat Mat Sto Mat Fac Low Low Zio Dee Machines Disabled 12 | . . . . 8 . . . 2 2 Max in Single Turn 3 | . . . . 3 . . . 1 1 Machines Sabotaged . | . . . . . . . . . . Garrisons Compromised . | . . . . . . . . . . Overloaded Fab Kills . | . . . . . . . . . . Hacking | -11 -10 -9 -9 -8 -7 -7 -7 -7 -7 --------- Run | Scr Mat Mat Sto Mat Fac Low Low Zio Dee Machines Accessed 6 | . . . 2 3 . 1 . . . Terminals 5 | . . . 2 3 . . . . . Fabricators . | . . . . . . . . . . Repair Stations . | . . . . . . . . . . Recycling Units . | . . . . . . . . . . Scanalyzers . | . . . . . . . . . . Garrison Access . | . . . . . . . . . . Total Hacks 16 | . . . 7 8 . 1 . . . Successful 8 | . . . 3 4 . 1 . . . Failed 8 | . . . 4 4 . . . . . Catastrophic 2 | . . . 1 1 . . . . . Database Lockouts . | . . . . . . . . . . Manual 11 | . . . 5 5 . . . 1 . Terminals 15 | . . . 7 8 . . . . . Fabricators . | . . . . . . . . . . Repair Stations . | . . . . . . . . . . Recycling Units . | . . . . . . . . . . Scanalyzers . | . . . . . . . . . . Garrison Access . | . . . . . . . . . . Terminal Hacks 5 | . . . 2 2 . 1 . . . Record 2 | . . . . 2 . . . . . Open Door 2 | . . . 1 . . 1 . . . Scanalyzer Index 1 | . . . 1 . . . . . . Fabricator Hacks . | . . . . . . . . . . Repair Station Hacks . | . . . . . . . . . . Recycling Unit Hacks . | . . . . . . . . . . Scanalyzer . | . . . . . . . . . . Garrison Access Hacks . | . . . . . . . . . . Unauthorized Hacks 3 | . . . 1 2 . . . . . Terminals 3 | . . . 1 2 . . . . . Botnet 2 | . . . . 2 . . . . . Search 1 | . . . 1 . . . . . . Fabricators . | . . . . . . . . . . Repair Stations . | . . . . . . . . . . Recycling Units . | . . . . . . . . . . Scanalyzers . | . . . . . . . . . . Garrison Access . | . . . . . . . . . . Data Cores Recovered . | . . . . . . . . . . Used . | . . . . . . . . . . Hacking Detections 3 | . . . . 3 . . . . . Full Trace Events . | . . . . . . . . . . Feedback Events . | . . . . . . . . . . Feedback Blocked . | . . . . . . . . . . Robot Schematics Acquired . | . . . . . . . . . . Robots Built . | . . . . . . . . . . Authchips . | . . . . . . . . . . Time . | . . . . . . . . . . Total Robot Build Rating . | . . . . . . . . . . Part Schematics Acquired . | . . . . . . . . . . Parts Built . | . . . . . . . . . . Authchips . | . . . . . . . . . . Time . | . . . . . . . . . . Total Part Build Rating . | . . . . . . . . . . Parts Repaired . | . . . . . . . . . . Time . | . . . . . . . . . . Parts Recycled . | . . . . . . . . . . Recycled Matter . | . . . . . . . . . . Retrieved Matter . | . . . . . . . . . . Retrieved Components . | . . . . . . . . . . Parts Scanalyzed . | . . . . . . . . . . Part Schematics Acquired . | . . . . . . . . . . Parts Damaged . | . . . . . . . . . . Bothacking | -11 -10 -9 -9 -8 -7 -7 -7 -7 -7 ------------ Run | Scr Mat Mat Sto Mat Fac Low Low Zio Dee Used RIF Installer . | . . . . . . . . . . Robots Hacked . | . . . . . . . . . . Non-combat . | . . . . . . . . . . Combat . | . . . . . . . . . . Robot Hacks Applied . | . . . . . . . . . . Relay Couplers Released . | . . . . . . . . . . Fabnet Peak Effective % . | . . . . . . . . . . Robots Rewired . | . . . . . . . . . . Allies Hacked . | . . . . . . . . . . Hacks Repelled . | . . . . . . . . . . Allies | -11 -10 -9 -9 -8 -7 -7 -7 -7 -7 -------- Run | Scr Mat Mat Sto Mat Fac Low Low Zio Dee Total Allies 5 | . . . . . . . . 5 . Largest Group 5 | . . . . . . . . 5 5 Highest-Rated Group 119 | . . . . . . . . 119 119 Highest-Rated Ally 31 | . . . . . . . . 31 31 Total Orders . | . . . . . . . . . . Ally Attacks 18 | . . . . . . . . . 18 Total Damage 372 | . . . . . . . . . 372 Kills 7 | . . . . . . . . . 7 Allies Corrupted . | . . . . . . . . . . Allies Melted . | . . . . . . . . . . Intel | -11 -10 -9 -9 -8 -7 -7 -7 -7 -7 ------- Run | Scr Mat Mat Sto Mat Fac Low Low Zio Dee Robot Analysis Total . | . . . . . . . . . . Derelict Logs Recovered 1 | . . . . . . 1 . . . Drone Launches . | . . . . . . . . . . Drone Recoveries . | . . . . . . . . . . Exploration | -11 -10 -9 -9 -8 -7 -7 -7 -7 -7 ------------- Run | Scr Mat Mat Sto Mat Fac Low Low Zio Dee Turns Passed 1745 | 44 211 18 154 133 62 150 129 342 502 Spaces Moved 3084 | 33 78 15 198 278 154 491 470 821 546 Core 220 | 9 3 . 156 18 . . . . 34 Treads . | . . . . . . . . . . Legs 156 | 24 75 15 42 . . . . . . Wheels . | . . . . . . . . . . Hover . | . . . . . . . . . . Flight 2708 | . . . . 260 154 491 470 821 512 Fastest Speed 25 | 50 100 120 50 27 25 30 25 25 25 Average Speed 43 | 106 154 120 64 38 29 30 25 25 76 Slowest Speed 190 | 150 190 120 120 50 30 30 30 25 105 Overloaded Moves . | . . . . . . . . . . Propulsion Burnouts . | . . . . . . . . . . Robots Hopped 2 | . . . . 2 . . . . . Cave-ins Triggered . | . . . . . . . . . . Exploration Rate (%) 39 | 4 20 4 45 30 2 67 69 84 65 Regions Visited 9 Branch Regions 5 Pre-discovered Areas 1 | . . . . . . . . 1 . Known Exits Taken . | . . . . . . . . . . Unknown Exits Taken 9 | 1 1 1 1 1 1 1 1 1 . Scrap Searched 6 | . . . . . . 2 2 2 . Spaces Dug 1 | . . . . . . . . 1 . Terrain Destroyed 229 | . 2 . . 17 . . 22 1 187 Melee 1 | . . . . . . . . 1 . Projectile 4 | . . . . . . . . . 4 AOE 224 | . 2 . . 17 . . 22 . 183 Terrain Rammed . | . . . . . . . . . . Walls Destroyed . | . . . . . . . . . . Machines Disabled . | . . . . . . . . . . Actions | -11 -10 -9 -9 -8 -7 -7 -7 -7 -7 --------- Run | Scr Mat Mat Sto Mat Fac Low Low Zio Dee Total 3339 | 38 131 15 223 295 168 493 478 885 613 Wait 86 | . 10 . 17 2 9 . . 9 39 Move 3071 | 32 77 14 197 273 153 490 469 820 546 Hop 2 | . . . . 2 . . . . . Pick Up 19 | . 1 1 . 5 1 2 2 5 2 Fast Attach 28 | 6 4 . 1 7 3 . . 3 4 Attach 7 | . . . 1 2 1 . 1 1 1 Detach 5 | . . . 1 1 . . 1 1 1 Swap 2 | . . . . . . . . 1 1 Drop 23 | . . . 1 1 1 1 2 8 9 Fire 53 | . 39 . . 2 . . 3 . 9 Melee 38 | . . . . . . . . 37 1 Ram 5 | . . . 5 . . . . . . Kick . | . . . . . . . . . . Crush . | . . . . . . . . . . Escape Stasis . | . . . . . . . . . . Rewire . | . . . . . . . . . . Trap . | . . . . . . . . . . Miscellaneous . | . . . . . . . . . . Route ------- -11/Scrapyard -10/Materials -9/Materials -9/Storage -8/Materials -7/Factory -7/Lower Caves -7/Lower Caves (discovered 2 exits: [*Fac] / *Zio) -7/Zion (discovered 2 exits: [*Dee] / [*Pro]) -7/Deep Caves (discovered 1 exit: [*Pro]) History --------- Turn | Location | Event 15 | -11/Scrapyard | Discovered new exit (range 15) 45 | -11/Scrapyard | Entered Materials 149 | -10/Materials | Lost 4 parts (1p2n1w) 206 | -10/Materials | Core integrity fell below 50% 241 | -10/Materials | Discovered new exit (range 3) 256 | -10/Materials | Entered another Materials area 256 | -9/Materials | Evolved 2 slots: Propulsion x1, Utility x1 269 | -9/Materials | Discovered new exit (range 5) 274 | -9/Materials | Entered Storage 357 | -9/Storage | Lost 5 parts (1p2n2w) 415 | -9/Storage | Core integrity fell below 50% 422 | -9/Storage | Discovered new exit (range 8) 428 | -9/Storage | Entered Materials 428 | -8/Materials | Evolved 2 slots: Propulsion x1, Utility x1 552 | -8/Materials | Discovered new exit (range 15) 561 | -8/Materials | Entered Factory 561 | -7/Factory | Evolved 2 slots: Propulsion x2 561 | -7/Factory | Discovered new exit (range 8) 623 | -7/Factory | Entered Lower Caves 643 | -7/Lower Caves | Learned location of 1 exit from Factory 689 | -7/Lower Caves | Spotted B-75 Beast 713 | -7/Lower Caves | Encountered a Warlord checkpoint 731 | -7/Lower Caves | Discovered new exit (range 3) 773 | -7/Lower Caves | Entered another Lower Caves area 781 | -7/Lower Caves | Discovered new exit (range 11) 793 | -7/Lower Caves | Encountered a Warlord checkpoint 820 | -7/Lower Caves | Build established: Sprinter 858 | -7/Lower Caves | Discovered new exit (range 11) 902 | -7/Lower Caves | Entered Zion 908 | -7/Zion | Given the Hacking Drone Bay 917 | -7/Zion | Discovered new exit (range 8) 931 | -7/Zion | Received a visual enhancement algorithm 961 | -7/Zion | Found CR-A16's Pointy Stick 970 | -7/Zion | Gained Derelict followers 1042 | -7/Zion | Found Prototype Device 1042 | -7/Zion | Identified Phasing AFG 1062 | -7/Zion | Found Prototype Special Weapon 1062 | -7/Zion | Identified RU-N14's Throwing Claymores 1101 | -7/Zion | Found RU-N14's Throwing Claymores 1103 | -7/Zion | Found RU-N14's Throwing Claymores 1106 | -7/Zion | Found RU-N14's Throwing Claymores 1191 | -7/Zion | Discovered new exit (range 4) 1233 | -7/Zion | Saw the warning signs outside the Deep Caves entrance 1244 | -7/Zion | Entered Deep Caves 1244 | -7/Deep Caves | Accompanied by 5 allies 1296 | -7/Deep Caves | Attacked by Z-Imprinter 1300 | -7/Deep Caves | Destroyed Z-Imprinter 1326 | -7/Deep Caves | Found Prototype Protection 1326 | -7/Deep Caves | Identified Zio. Weapon Casing 1578 | -7/Deep Caves | Build established: Mutant 1628 | -7/Deep Caves | Discovered new exit (range 14) 1715 | -7/Deep Caves | Spotted as-45358 1716 | -7/Deep Caves | Exposed GOLEM chamber 1732 | -7/Deep Caves | Triggered Deep Caves wall 1732 | -7/Deep Caves | Spotted AS-16438 1736 | -7/Deep Caves | Core integrity fell below 50% 1737 | -7/Deep Caves | Found GOLEM Unit 1742 | -7/Deep Caves | Core integrity fell below 20% 1746 | -7/Deep Caves | Destroyed by as-45358 with Assembled Focal Cannon Last Messages --------------- 01720_ Dropped RU-N14's Throwing Claymores. 01724_ Dropped Prc. Rocket Launcher. 01726_ GOLEM Unit springs to life. 01727_ as-53934 GOLEM Unit beginning Prototype Leg integration. 01728_ Acquired Ripper. 01729_ OF-FYY(i) destroyed. 01732_ The wall dematerializes. 01732_ Cld. Airjet destroyed. 01732_ VTOL Module destroyed. 01733_ 62-0GZ(b) suffers critical hit (Destroy). 01733_ 62-0GZ(b) destroyed. 01734_ A GOLEM Unit tumbles out of the Wall Chamber. 01735_ Ripper destroyed. 01737_ Acquired GOLEM Unit. 01738_ A GOLEM Unit tumbles out of the Wall Chamber. 01739_ Flight Unit destroyed. 01740_ GOLEM Unit springs to life. 01740_ Mak. Hacking Suite destroyed. 01741_ as-13270 GOLEM Unit beginning Prototype Leg integration. 01743_ Adv. Terrain Scan Processor destroyed. Map ----- +----------------------------------------------------+ | ?????? ??????? # ??? ## ? ?? ? ?#???### | | ?????? ? ? #???# ?# ??? ???##### | | ????? #??# ? #???#?#?####?### | | ????? ??? ?####?###? ####??# | | ???? ###?# ###??#?#?? ?#??### | | ???? / ##?### ###?##### ?###### | | ????? ###?# ######### ##### | | ????? ! ! ##### ##### | | ?????# ! ##?###### ###### | | ?????# / / ! "####?### ####### | | ??????" !! "###### ###### | | ??????" ####### ######## | | ?????"" ] ###### ## ###?## | | ???#"" ! ! ] ###### # ######## | | ???#! /a ] ##### " # <#?# | | ???### s /=]| l ###?# ### | | ?????" a|] = ##### ###### | | ?????" * ! a | ! ## ####### # ###### # | | ?????" | ! = / ###### # #?### | | ?????""" | = a h ######## ##### | | ?????" aa ######## ##### | | ?????"" a # #### ##### | | ?????" g # # | | ?????"" a # # # | | ?????" ############ | | ?????" #### # @ ####???##?###?# | | ?????""" ###### ## ## ##### #######?####?## | | ??????" ? ??#### # ### ### ###########?#### | | ??????#######?##?#?#####?## #########?###?#####? | | | | | | | | | | | | | | | | | | | | | | | | | | | | | | | | | | | | | | | | | | | +----------------------------------------------------+ Best States ------------- Heat Dissipation 60 Energy Generation 14 Energy Capacity 250 Matter Stores 300 Matter Capacity 300 Sight Range 16 Terrain Scan Range 16 Terrain Scan Density 210 Propulsion Shielding 66 Weapon Shielding 100 Evasion (%) 65 Offensive Hacking 21 Authchip Count 1 Item Schematics ----------------- None Robot Schematics ------------------ None Fabricated ------------ Nothing Alien Tech Used ----------------- None Achievements -------------- None Challenges ------------ None Game ------ Seed DataPowerNanovents Manual? 0 Play Time 00:31:14 Cumulative 340.0 hours Start 2022.08.17 @ 18:18:11 End 2022.08.17 @ 23:22:35 Sessions 1 Manual Loads 0 Difficulty Rogue Special Mode None Game No. 162 Rogue 158 Adventurer 0 Explorer 4 Win Type - Total 18 Types 4/1/2/4/1/2/3/0/1 Lore% 82 Gallery% 86 Achievement% 78 Wizard Run 0 Options --------- ASCII 0 Keyboard 0 Movement Mouse Keybinds 0 Fullscreen 1 Font 18/SmallcapsGlow Map View 76x50 Tactical HUD 1 Map Filters NONE Filters NONE Steam 1 RUN: eca01cfe-3b31-461d-8b75-0de54f6ebdc1